[Event "WYCC 2018 G16"]
[Site "Halkidiki"]
[Date "2018.10.29"]
[Round "10"]
[White "Cramling Bellon, Anna"]
[Black "Nguyen, Vu Thu Hien"]
[Result "0-1"]
[ECO "D35"]
[WhiteElo "2025"]
[BlackElo "1841"]
[Annotator "NA"]
[PlyCount "94"]
[EventDate "2018.10.20"]
[EventType "swiss"]
[EventCountry "GRE"]
[SourceTitle "playchess.com"]
[Source "ChessBase"]
[SourceQuality "1"]
[TimeControl "40/5400+30:1800+30"]

1. d4 {[%emt 0:00:00]} d5 {[%emt 0:00:00]} 2. c4 {[%emt 0:00:00]} e6 {[%emt 0:00:00]} 3. Nc3 {[%emt 0:00:00]} Nf6 {[%emt 0:00:00]} 4. cxd5 {[%emt 0:00:00]} exd5 {[%emt 0:00:00]} 5. Bg5 {[%emt 0:00:00]} Nbd7 {[%emt 0:00:45]} 6. e3 {[%emt 0:00:21]} Be7 {[%emt 0:00:09]} 7. Bd3 {[%emt 0:01:22]} c6 {[%emt 0:00:08]} 8. Qc2 {[%emt 0:00:14]} h6 {[%emt 0:00:18]} 9. Bh4 {[%emt 0:00:12]} O-O {[%emt 0:00:07]} 10. Nf3 {[%emt 0:00:06]} Re8 {[%emt 0:00:06]} 11. Bg3 {[%emt 0:00:05]} Nh5 {[%emt 0:09:12]} 12. Be5 {[%emt 0:00:09] D36: Damengambit (Abtauschvariante)} (12. O-O-O Nxg3 13. hxg3 Nf6 14. Kb1 Bd6 15. Nh4 Be6 16. Bf5 Qd7 17. Bxe6 Qxe6 18. Ne2 Qe4 19. Nf5 Bf8 20. Nc3 Qxc2+ 21. Kxc2 {½-½ (45) Van Wely,L (2693)-Van Kampen,R (2607) Hoogeveen 2013}) 12... Nxe5 {[%emt 0:05:41]} 13. Bh7+ {[%emt 0:00:13]} Kf8 {[%emt 0:01:59]} 14. Nxe5 {[%emt 0:01:17]} Be6 $146 {[%emt 0:03:57]} ({Vorgänger:} 14... Qd6 15. Bf5 g6 16. Bd3 Kg7 17. O-O a5 18. f4 Nf6 19. a4 Bd8 20. Rf3 Ng4 {½-½ (20) De Castro,E-Bandal,R Manila 1967}) 15. Bd3 {[%emt 0:09:48]} Bd6 {[%emt 0:03:30]} 16. O-O {[%emt 0:15:21]} Nf6 {[%emt 0:03:48]} 17. f4 {[%emt 0:10:51]} Rc8 {[%emt 0:01:52]} 18. Bf5 {[%emt 0:25:41]} c5 {[%emt 0:07:47]} 19. Bxe6 {[%emt 0:00:24]} Rxe6 $11 {[%emt 0:00:14]} 20. Qb3 {[%emt 0:03:32]} b6 {[%emt 0:01:59]} 21. Rae1 {[%emt 0:05:43]} a6 {[%emt 0:08:08]} 22. a4 {[%emt 0:16:40]} c4 {[%emt 0:00:20]} 23. Qc2 {[%emt 0:00:20]} Bb4 {[%emt 0:00:48]} 24. Qf5 {[%emt 0:03:46]} Qe8 {[%emt 0:03:23]} 25. Qc2 {[%emt 0:05:28]} Ne4 {[%emt 0:03:09]} 26. f5 {[%emt 0:00:19]} Rxe5 {[%emt 0:04:43]} 27. dxe5 {[%emt 0:00:05]} Qxe5 {[%emt 0:00:03]} 28. Rf3 {[%emt 0:01:31]} Nxc3 {[%emt 0:01:38]} 29. bxc3 {[%emt 0:00:01]} Qxc3 {[%emt 0:00:23]} 30. Qxc3 {[%emt 0:00:07]} Bxc3 {[%emt 0:00:01]} 31. Rd1 {[%emt 0:00:27]} Rc5 {[%emt 0:00:21]} 32. e4 {[%emt 0:01:03]} d4 {[%emt 0:00:13]} 33. f6 {[%emt 0:00:48]} d3 {[%emt 0:00:14]} 34. fxg7+ {[%emt 0:00:14]} Kxg7 {[%emt 0:00:35]} 35. Rdf1 {[%emt 0:00:50]} Bd4+ {[%emt 0:00:13]} 36. Kh1 {[%emt 0:00:05]} f6 {[%emt 0:00:29]} 37. g4 {[%emt 0:00:39]} d2 {[%emt 0:00:13]} 38. Kg2 {[%emt 0:00:44]} c3 {[%emt 0:00:12]} 39. Rd3 {[%emt 0:00:09]} Rc4 {[%emt 0:01:48]} 40. a5 {[%emt 0:00:00]} b5 {[%emt 0:00:00]} 41. h4 {[%emt 0:00:47]} Kg6 {[%emt 0:04:23]} 42. Kh3 {[%emt 0:14:43]} b4 {[%emt 0:09:07]} 43. e5 {[%emt 0:12:07]} fxe5 {[%emt 0:02:28]} 44. Rdf3 {[%emt 0:01:32]} Rc7 {[%emt 0:03:47]} 45. g5 {[%emt 0:04:13]} e4 {[%emt 0:04:04]} 46. Rf4 {[%emt 0:00:30]} hxg5 {[%emt 0:00:44]} 47. hxg5 {[%emt 0:00:12]} c2 0-1

[Event "WYCC 2018 G16"]
[Site "Halkidiki"]
[Date "2018.10.29"]
[Round "10"]
[White "Miroshnik, Ekaterina"]
[Black "Meenal Gupta"]
[Result "1-0"]
[ECO "E16"]
[WhiteElo "2023"]
[BlackElo "2065"]
[Annotator "NA"]
[PlyCount "87"]
[EventDate "2018.10.20"]
[EventType "swiss"]
[EventCountry "GRE"]
[SourceTitle "playchess.com"]
[Source "ChessBase"]
[SourceQuality "1"]
[TimeControl "40/5400+30:1800+30"]

1. d4 {[%emt 0:00:00]} Nf6 {[%emt 0:00:00]} 2. c4 {[%emt 0:00:00]} e6 {[%emt 0:00:00]} 3. Nf3 {[%emt 0:00:00]} Bb4+ {[%emt 0:00:20]} 4. Bd2 {[%emt 0:00:00]} Qe7 {[%emt 0:00:06]} 5. a3 {[%emt 0:00:00]} Bxd2+ {[%emt 0:00:05]} 6. Qxd2 {[%emt 0:00:00]} d6 {[%emt 0:00:33] E11: Bogo-Indian} (6... d5 7. Nc3 O-O 8. e3 Rd8 9. Qc2 dxc4 10. Bxc4 c5 11. O-O cxd4 12. Nxd4 Bd7 13. Rfd1 Nc6 14. Nxc6 Bxc6 15. Rxd8+ Rxd8 16. Rd1 Rxd1+ {½-½ (16) Vallejo Pons,F (2711)-Vazquez Igarza,R (2589) Madrid 2016}) 7. e3 {[%emt 0:00:13]} e5 {[%emt 0:01:42]} 8. Qc2 {[%emt 0:04:06]} O-O {[%emt 0:07:53]} 9. dxe5 {[%emt 0:04:15]} dxe5 {[%emt 0:00:09]} 10. Nc3 {[%emt 0:00:38]} c6 $146 {[%emt 0:16:55]} ({Predecessor:} 10... e4 11. Nd2 Bf5 12. h3 Bg6 13. g4 h6 14. Be2 Nbd7 15. h4 Nc5 {0-1 (57) Dambrauskas,V (2303)-Zagorskis,D (2470) Vilnius 2004}) 11. Bd3 {[%emt 0:02:37]} Nbd7 {[%emt 0:00:11]} 12. Ng5 {[%emt 0:02:58]} h6 {[%emt 0:01:37]} 13. Nh7 {[%emt 0:02:40]} Nxh7 {[%emt 0:05:12]} 14. Bxh7+ {[%emt 0:00:06]} Kh8 {[%emt 0:00:03]} 15. Bf5 {[%emt 0:01:38]} Nb6 {[%emt 0:00:25]} 16. Bxc8 {[%emt 0:05:24]} Raxc8 {[%emt 0:04:58]} 17. b3 {[%emt 0:03:51]} a5 {[%emt 0:00:20]} 18. O-O {[%emt 0:00:36]} Rcd8 {[%emt 0:01:52]} 19. Rfd1 {[%emt 0:11:54]} Rxd1+ {[%emt 0:02:10]} 20. Nxd1 $11 {[%emt 0:00:13]} e4 {[%emt 0:05:03]} 21. Nc3 {[%emt 0:07:43]} f5 {[%emt 0:04:35]} 22. Ne2 {[%emt 0:01:01]} Qc5 {[%emt 0:09:34]} 23. a4 {[%emt 0:11:47]} Nd7 {[%emt 0:04:16]} 24. Rd1 {[%emt 0:05:06]} Rf7 {[%emt 0:01:12]} 25. Qc3 {[%emt 0:03:36]} Ne5 {[%emt 0:03:23]} 26. Nf4 {[%emt 0:01:13]} Rd7 {[%emt 0:04:37]} 27. Rd4 {[%emt 0:10:06]} Rd6 28. h3 {[%emt 0:04:46]} Kh7 {[%emt 0:10:21]} 29. Rxd6 {[%emt 0:02:55]} Qxd6 {[%emt 0:00:02]} 30. Qxa5 {[%emt 0:05:45]} c5 {[%emt 0:00:04]} 31. Nd5 {[%emt 0:01:26]} Nd3 {[%emt 0:00:11]} 32. Qc3 {[%emt 0:01:19]} Kg6 {[%emt 0:02:40]} 33. g3 {[%emt 0:03:25]} h5 {[%emt 0:01:52]} 34. h4 {[%emt 0:01:07]} Kh7 {[%emt 0:03:11]} 35. Kf1 {[%emt 0:01:20]} f4 {[%emt 0:02:47]} 36. exf4 {[%emt 0:00:43]} Qe6 {[%emt 0:00:34]} 37. Ne3 {[%emt 0:01:47]} Qh3+ {[%emt 0:00:35]} 38. Kg1 {[%emt 0:00:54]} b6 {[%emt 0:00:45]} 39. Qc2 {[%emt 0:00:45]} Kh6 {[%emt 0:00:20]} 40. Qd1 {[%emt 0:00:00]} g6 {[%emt 0:00:00]} 41. Qa1 {[%emt 0:05:50]} Kh7 {[%emt 0:01:03]} 42. Qf6 {[%emt 0:04:08]} Ne1 {[%emt 0:00:54]} 43. Qe7+ {[%emt 0:00:15]} Kh6 {[%emt 0:00:08]} 44. Qxe4 {[%emt 0:00:07]} 1-0

[Event "WYCC 2018 G16"]
[Site "Halkidiki"]
[Date "2018.10.29"]
[Round "10"]
[White "Nestorovic, Katarina"]
[Black "Staravoitava, Hanna"]
[Result "1-0"]
[ECO "B27"]
[WhiteElo "2015"]
[BlackElo "1768"]
[Annotator "NA"]
[PlyCount "117"]
[EventDate "2018.10.20"]
[EventType "swiss"]
[EventCountry "GRE"]
[SourceTitle "playchess.com"]
[Source "ChessBase"]
[SourceQuality "1"]
[TimeControl "40/5400+30:1800+30"]

1. e4 {[%emt 0:00:00]} c5 {[%emt 0:00:00]} 2. Nf3 {[%emt 0:00:00]} g6 {[%emt 0:00:00]} 3. d4 {[%emt 0:00:03]} cxd4 {[%emt 0:00:00]} 4. Nxd4 {[%emt 0:00:06]} Bg7 {[%emt 0:00:00]} 5. Nc3 {[%emt 0:00:21]} Nc6 {[%emt 0:00:00]} 6. Nb3 {[%emt 0:00:44]} Nf6 {[%emt 0:00:10]} 7. Be2 {[%emt 0:00:10]} d6 {[%emt 0:00:19]} 8. O-O {[%emt 0:00:18]} O-O {[%emt 0:00:04]} 9. Re1 {[%emt 0:00:14]} a5 {[%emt 0:01:29]} 10. a4 {[%emt 0:00:37]} Be6 {[%emt 0:00:05]} 11. Bf1 {[%emt 0:00:26]} Rc8 {[%emt 0:00:38]} 12. Nd5 {[%emt 0:02:18]} Ng4 {[%emt 0:14:55]} 13. h3 {[%emt 0:07:04]} Nge5 {[%emt 0:00:04]} 14. c3 {[%emt 0:01:50]} h6 {[%emt 0:10:30]} 15. Be3 {[%emt 0:02:30]} Bxd5 {[%emt 0:00:14]} (15... Nd7 $142) 16. exd5 {[%emt 0:02:21]} Nb8 {[%emt 0:00:04]} 17. Nd2 {[%emt 0:04:24]} Na6 {[%emt 0:10:46]} 18. f4 {[%emt 0:03:47]} Nd7 $16 {[%emt 0:00:18]} 19. Bb5 {[%emt 0:01:39]} Nac5 {[%emt 0:02:32]} 20. Nc4 {[%emt 0:10:47]} Nb6 {[%emt 0:18:58]} 21. Nxa5 {[%emt 0:13:59]} Ra8 {[%emt 0:00:44]} 22. Nc4 {[%emt 0:05:48]} Nxc4 {[%emt 0:06:42]} 23. Bxc4 {[%emt 0:00:26]} Qc8 {[%emt 0:02:08]} 24. Qc2 {[%emt 0:08:15]} e6 {[%emt 0:05:14]} 25. dxe6 {[%emt 0:04:19]} Nxe6 {[%emt 0:00:04]} 26. Bd5 {[%emt 0:04:32]} Nc7 {[%emt 0:01:22]} 27. Bb3 {[%emt 0:02:43]} d5 {[%emt 0:01:57]} 28. Rad1 {[%emt 0:00:20]} Re8 {[%emt 0:02:18]} 29. Kh1 {[%emt 0:06:23]} Qe6 {[%emt 0:02:31]} 30. Qf2 {[%emt 0:03:12]} Ra6 {[%emt 0:03:05]} 31. Bc5 {[%emt 0:02:29]} Qc6 {[%emt 0:00:46]} 32. Rxe8+ {[%emt 0:01:01]} Qxe8 {[%emt 0:00:06]} 33. Bb6 {[%emt 0:04:30]} Ne6 {[%emt 0:01:37]} 34. Rxd5 {[%emt 0:02:24]} Qc6 {[%emt 0:01:14]} 35. a5 {[%emt 0:00:34]} Ra8 {[%emt 0:01:02]} 36. Qd2 {[%emt 0:02:17]} Re8 {[%emt 0:03:11]} 37. Rd6 {[%emt 0:02:06]} Qe4 {[%emt 0:00:36]} 38. Bxe6 {[%emt 0:00:50]} Rxe6 {[%emt 0:00:17]} 39. Rxe6 {[%emt 0:00:49]} Qxe6 {[%emt 0:00:06]} 40. b4 {[%emt 0:00:00]} h5 {[%emt 0:00:00]} 41. Bd4 {[%emt 0:06:43]} Bxd4 {[%emt 0:07:25]} 42. Qxd4 {[%emt 0:00:42]} Qe1+ {[%emt 0:03:34]} 43. Kh2 {[%emt 0:00:14]} h4 {[%emt 0:00:03]} 44. Qd3 {[%emt 0:01:35]} Qf2 {[%emt 0:02:22]} 45. Qf3 {[%emt 0:01:19]} Qa7 {[%emt 0:02:59]} 46. Qe2 {[%emt 0:03:37]} Kf8 {[%emt 0:05:42]} 47. Qe5 {[%emt 0:03:37]} Kg8 {[%emt 0:01:11]} 48. Qe8+ {[%emt 0:02:16]} Kg7 {[%emt 0:00:15]} 49. Qd8 {[%emt 0:00:47]} Qa6 {[%emt 0:09:01]} 50. Qxh4 {[%emt 0:00:19]} Qc4 {[%emt 0:00:03]} 51. Qg3 {[%emt 0:00:13]} Kf6 {[%emt 0:00:03]} 52. Qe3 {[%emt 0:00:44]} Qc7 {[%emt 0:02:04]} 53. Qe5+ {[%emt 0:01:08]} Qxe5 {[%emt 0:00:05]} 54. fxe5+ {[%emt 0:00:03]} Kxe5 {[%emt 0:00:06]} 55. c4 {[%emt 0:00:49]} Kd4 {[%emt 0:00:45]} 56. b5 {[%emt 0:00:24]} Kc5 {[%emt 0:00:21]} 57. Kg3 {[%emt 0:00:14]} f6 {[%emt 0:00:28]} 58. Kf4 {[%emt 0:00:06]} Kd6 {[%emt 0:00:18]} 59. g4 {[%emt 0:00:19] Kd5 Ke4+} 1-0

[Event "WYCC 2018 G16"]
[Site "Halkidiki"]
[Date "2018.10.29"]
[Round "10"]
[White "Bogdanic, Katarina"]
[Black "Nemcova, Karin"]
[Result "0-1"]
[ECO "A37"]
[WhiteElo "2014"]
[BlackElo "1888"]
[Annotator "NA"]
[PlyCount "84"]
[EventDate "2018.10.20"]
[EventType "swiss"]
[EventCountry "GRE"]
[SourceTitle "playchess.com"]
[Source "ChessBase"]
[SourceQuality "1"]
[TimeControl "40/5400+30:1800+30"]

1. c4 {[%emt 0:00:00]} c5 {[%emt 0:00:00]} 2. Nf3 {[%emt 0:00:00]} Nc6 {[%emt 0:00:00]} 3. g3 {[%emt 0:00:00]} g6 {[%emt 0:00:00]} 4. Bg2 {[%emt 0:00:00]} Bg7 {[%emt 0:00:03]} 5. Nc3 {[%emt 0:00:11]} e5 {[%emt 0:00:06]} 6. O-O {[%emt 0:00:15]} d6 {[%emt 0:00:06]} 7. Ne1 {[%emt 0:00:29]} Be6 {[%emt 0:00:06]} 8. d3 {[%emt 0:00:05]} Nge7 {[%emt 0:00:06]} 9. Nc2 {[%emt 0:00:34]} d5 {[%emt 0:00:11]} 10. cxd5 {[%emt 0:01:15]} Nxd5 {[%emt 0:00:07]} 11. Ne4 {[%emt 0:08:57] A37: Symmetrical English vs ...g6: 4 Bg2 Bg7 5 Nf3} (11. Ne3 Nde7 12. Nc4 O-O 13. a4 Rb8 14. a5 h6 15. f4 Kh7 16. fxe5 Nxe5 17. Bf4 Bxc4 18. dxc4 Nxc4 19. Bxb8 Qxb8 {½-½ (40) Cyborowski,L (2543)-Istratescu,A (2651) Legnica 2013}) 11... b6 {[%emt 0:05:56]} 12. Ne3 {[%emt 0:06:47]} Nde7 {[%emt 0:01:16]} 13. Nc4 {[%emt 0:04:12]} O-O {[%emt 0:06:29]} 14. Bg5 {[%emt 0:06:37]} f6 {[%emt 0:01:01]} 15. Bd2 {[%emt 0:00:41]} Qd7 $146 {[%emt 0:05:24]} ({Predecessor:} 15... h6 16. a4 {0-1 (38) Miskovsky,P-Jirovsky,P (2335) Prague 1994}) 16. Qc1 {[%emt 0:03:40]} Rad8 {[%emt 0:03:06]} 17. Bh6 {[%emt 0:06:59]} Nd4 {[%emt 0:02:43]} 18. Nc3 {[%emt 0:06:08]} b5 {[%emt 0:00:54]} 19. Bxg7 {[%emt 0:01:18]} Kxg7 {[%emt 0:00:23]} 20. e3 {[%emt 0:01:34]} bxc4 {[%emt 0:02:56]} 21. exd4 {[%emt 0:00:04]} cxd4 {[%emt 0:00:53]} 22. Ne4 {[%emt 0:00:42]} Rc8 {[%emt 0:01:00]} 23. Qd2 {[%emt 0:01:08]} cxd3 {[%emt 0:00:38]} 24. Rfc1 {[%emt 0:00:52]} Rxc1+ $19 {[%emt 0:10:02]} 25. Rxc1 {[%emt 0:02:06]} Rc8 {[%emt 0:01:20]} 26. Nc5 {[%emt 0:02:08]} Qd6 {[%emt 0:04:35]} 27. b4 {[%emt 0:00:12]} Bd5 {[%emt 0:01:39]} 28. Bh3 {[%emt 0:04:00]} Rb8 {[%emt 0:10:42]} 29. Nxd3 {[%emt 0:00:27]} Ba8 {[%emt 0:02:00]} 30. Rc5 {[%emt 0:05:32]} Nd5 {[%emt 0:06:51]} 31. Ra5 {[%emt 0:02:08]} a6 {[%emt 0:06:45]} 32. Nc5 {[%emt 0:03:50]} Rxb4 {[%emt 0:07:32]} 33. Rxa6 {[%emt 0:08:11]} Rb1+ {[%emt 0:00:44]} 34. Bf1 {[%emt 0:00:04]} Qxc5 {[%emt 0:00:18]} 35. Rxa8 {[%emt 0:00:16]} Qc4 {[%emt 0:01:16]} 36. Ra7+ {[%emt 0:00:23]} Kg8 {[%emt 0:03:02]} 37. Ra8+ {[%emt 0:01:23]} Kf7 {[%emt 0:01:57]} 38. Rf8+ {[%emt 0:04:00]} Kxf8 {[%emt 0:00:52]} 39. Qh6+ {[%emt 0:00:12]} Ke8 {[%emt 0:00:07]} 40. Qh3 {[%emt 0:00:00]} Rxf1+ {[%emt 0:00:00]} 41. Qxf1 {[%emt 0:00:26]} Qxf1+ {[%emt 0:01:32]} 42. Kxf1 {[%emt 0:00:03]} Nc3 {[%emt 0:00:08]} 0-1

[Event "WYCC 2018 G16"]
[Site "Halkidiki"]
[Date "2018.10.29"]
[Round "10"]
[White "Zhang, Xiao"]
[Black "Cervantes Landeiro, Thalia"]
[Result "0-1"]
[ECO "D86"]
[WhiteElo "1980"]
[BlackElo "2129"]
[Annotator "NA"]
[PlyCount "74"]
[EventDate "2018.10.20"]
[EventType "swiss"]
[EventCountry "GRE"]
[SourceTitle "playchess.com"]
[Source "ChessBase"]
[SourceQuality "1"]
[TimeControl "40/5400+30:1800+30"]

1. d4 {[%emt 0:00:00]} Nf6 {[%emt 0:00:00]} 2. c4 {[%emt 0:00:00]} g6 {[%emt 0:00:00]} 3. Nc3 {[%emt 0:00:01]} d5 {[%emt 0:00:00]} 4. cxd5 {[%emt 0:00:30]} Nxd5 {[%emt 0:00:00]} 5. e4 {[%emt 0:00:11]} Nxc3 {[%emt 0:00:00]} 6. bxc3 {[%emt 0:00:03]} Bg7 {[%emt 0:00:02]} 7. Bc4 {[%emt 0:00:06]} c5 {[%emt 0:00:09]} 8. Ne2 {[%emt 0:00:07]} O-O {[%emt 0:00:07]} 9. Be3 {[%emt 0:00:05]} Nc6 {[%emt 0:00:06]} 10. Rc1 {[%emt 0:00:10]} Qc7 {[%emt 0:00:46]} 11. O-O {[%emt 0:00:23]} Rd8 {[%emt 0:00:11]} 12. Qd2 {[%emt 0:01:32]} Qa5 {[%emt 0:02:47]} 13. Qb2 {[%emt 0:06:05]} a6 {[%emt 0:04:36]} 14. Rfd1 {[%emt 0:03:58]} b5 {[%emt 0:02:20]} 15. Bd5 {[%emt 0:01:36]} Qc7 {[%emt 0:10:38]} 16. dxc5 {[%emt 0:04:52]} Bb7 {[%emt 0:02:09]} 17. a4 $11 {[%emt 0:20:21]} e6 {[%emt 0:05:41]} 18. Ba2 {[%emt 0:01:45]} Ne5 {[%emt 0:03:33]} 19. Qb1 {[%emt 0:02:24]} Ng4 {[%emt 0:01:00]} 20. Bf4 {[%emt 0:05:27]} Qxc5 {[%emt 0:00:24]} 21. Bg3 {[%emt 0:00:44]} Be5 {[%emt 0:10:28]} 22. Qb4 {[%emt 0:12:19]} Qxb4 {[%emt 0:06:09]} 23. cxb4 {[%emt 0:00:08]} Bxg3 {[%emt 0:00:43]} 24. hxg3 {[%emt 0:05:15]} bxa4 {[%emt 0:02:59]} 25. Nc3 {[%emt 0:06:14]} Bc6 {[%emt 0:01:52]} 26. Bc4 {[%emt 0:06:56]} Rxd1+ {[%emt 0:03:33]} 27. Rxd1 {[%emt 0:00:46]} Rb8 {[%emt 0:09:13]} 28. Be2 {[%emt 0:10:10]} Nf6 {[%emt 0:02:01]} 29. Rd4 {[%emt 0:00:47]} Bb5 {[%emt 0:05:10]} 30. Bd1 {[%emt 0:04:01]} Rc8 {[%emt 0:04:26]} 31. Nxa4 {[%emt 0:01:56]} e5 {[%emt 0:03:39]} 32. Rd6 {[%emt 0:03:12]} Nxe4 {[%emt 0:00:42]} 33. Rd5 {[%emt 0:00:09]} Rc1 {[%emt 0:02:14]} 34. Kh2 {[%emt 0:03:21]} Nxf2 {[%emt 0:03:03]} 35. Nb2 {[%emt 0:00:12]} e4 {[%emt 0:00:36]} 36. g4 {[%emt 0:00:45]} Rb1 {[%emt 0:01:27]} 37. Rd2 {[%emt 0:00:45]} e3 {[%emt 0:00:17]} 0-1

[Event "WYCC 2018 G16"]
[Site "Halkidiki"]
[Date "2018.10.29"]
[Round "10"]
[White "Sanskriti Goyal"]
[Black "Makhija, Aashna"]
[Result "1/2-1/2"]
[ECO "E47"]
[WhiteElo "1971"]
[BlackElo "2197"]
[Annotator "NA"]
[PlyCount "86"]
[EventDate "2018.10.20"]
[EventType "swiss"]
[EventCountry "GRE"]
[SourceTitle "playchess.com"]
[Source "ChessBase"]
[SourceQuality "1"]
[TimeControl "40/5400+30:1800+30"]

1. d4 {[%emt 0:00:00]} Nf6 {[%emt 0:00:00]} 2. c4 {[%emt 0:00:00]} e6 {[%emt 0:00:02]} 3. Nc3 {[%emt 0:00:30]} Bb4 {[%emt 0:00:16]} 4. e3 {[%emt 0:00:17]} O-O {[%emt 0:00:30]} 5. Bd3 {[%emt 0:02:00]} c5 {[%emt 0:00:59]} 6. Nge2 {[%emt 0:01:44]} d5 {[%emt 0:02:35]} 7. cxd5 {[%emt 0:02:05]} cxd4 {[%emt 0:01:49]} 8. exd4 {[%emt 0:02:29]} Nxd5 {[%emt 0:00:53]} 9. a3 {[%emt 0:04:55]} Bd6 {[%emt 0:09:45]} 10. Nxd5 {[%emt 0:05:46]} exd5 {[%emt 0:00:16]} 11. h3 {[%emt 0:03:32]} Nc6 {[%emt 0:03:55]} 12. Be3 {[%emt 0:07:26]} Re8 {[%emt 0:07:43]} 13. O-O {[%emt 0:06:10]} Be6 {[%emt 0:07:10]} 14. Rc1 {[%emt 0:08:32]} Rc8 {[%emt 0:09:40]} 15. Bb1 {[%emt 0:09:52]} Qd7 {[%emt 0:07:18]} 16. Bf4 {[%emt 0:15:43]} Na5 $11 {[%emt 0:17:51]} 17. Qd3 {[%emt 0:08:44]} g6 {[%emt 0:01:34]} 18. Qg3 {[%emt 0:00:18]} Bf8 {[%emt 0:12:41]} 19. Rxc8 {[%emt 0:05:22]} Rxc8 {[%emt 0:00:23]} 20. Nc1 {[%emt 0:00:35]} Nc4 {[%emt 0:04:55]} 21. Nd3 {[%emt 0:00:15]} Qb5 {[%emt 0:04:09]} 22. Re1 {[%emt 0:04:40]} Bf5 {[%emt 0:01:11]} 23. Ne5 {[%emt 0:01:53]} Bxb1 {[%emt 0:00:29]} 24. Nxc4 {[%emt 0:02:02]} dxc4 {[%emt 0:04:10]} 25. Rxb1 {[%emt 0:00:17]} c3 {[%emt 0:00:06]} 26. b4 {[%emt 0:01:49]} Qa4 {[%emt 0:00:43]} 27. Qf3 {[%emt 0:02:31]} Qxa3 {[%emt 0:01:40]} 28. Qxb7 {[%emt 0:00:09]} Re8 {[%emt 0:00:40]} 29. Qc6 {[%emt 0:03:14]} Re2 {[%emt 0:00:29]} 30. b5 {[%emt 0:00:24]} Qa2 {[%emt 0:00:30]} 31. Rf1 {[%emt 0:00:02]} c2 {[%emt 0:00:23]} 32. Qc8 {[%emt 0:01:11]} Qa3 {[%emt 0:00:30]} 33. Bh6 {[%emt 0:00:33]} Qd6 {[%emt 0:00:39]} 34. Rc1 {[%emt 0:00:41]} Qe7 {[%emt 0:00:31]} 35. Bxf8 {[%emt 0:00:30]} Qxf8 {[%emt 0:00:20]} 36. Rxc2 {[%emt 0:00:10]} Rxc2 {[%emt 0:00:37]} 37. Qxc2 {[%emt 0:00:02]} Qb4 {[%emt 0:00:30]} 38. Qc5 {[%emt 0:01:50]} Qe1+ {[%emt 0:00:14]} 39. Kh2 {[%emt 0:00:01]} Qxf2 {[%emt 0:00:21]} 40. Qxa7 {[%emt 0:00:00]} Qf4+ {[%emt 0:00:00]} 41. Kg1 {[%emt 0:01:03]} Qe3+ {[%emt 0:09:21]} 42. Kh1 {[%emt 0:02:24]} Qc1+ {[%emt 0:00:19]} 43. Kh2 {[%emt 0:00:04]} Qf4+ 1/2-1/2

[Event "WYCC 2018 G16"]
[Site "Halkidiki"]
[Date "2018.10.29"]
[Round "10"]
[White "Djidjeli, Sarah"]
[Black "Peycheva, Gergana"]
[Result "0-1"]
[ECO "C06"]
[WhiteElo "1952"]
[BlackElo "2152"]
[Annotator "NA"]
[PlyCount "54"]
[EventDate "2018.10.20"]
[EventType "swiss"]
[EventCountry "GRE"]
[SourceTitle "playchess.com"]
[Source "ChessBase"]
[SourceQuality "1"]
[TimeControl "40/5400+30:1800+30"]

1. e4 {[%emt 0:00:00]} e6 {[%emt 0:00:00]} 2. d4 {[%emt 0:00:00]} d5 {[%emt 0:00:08]} 3. Nd2 {[%emt 0:00:00]} Nf6 {[%emt 0:00:50]} 4. e5 {[%emt 0:00:00]} Nfd7 {[%emt 0:00:54]} 5. Bd3 {[%emt 0:00:31]} c5 {[%emt 0:00:59]} 6. c3 {[%emt 0:00:07]} Nc6 {[%emt 0:00:39]} 7. Ne2 {[%emt 0:00:52]} cxd4 {[%emt 0:01:18]} 8. cxd4 {[%emt 0:00:17]} f6 {[%emt 0:00:35]} 9. exf6 {[%emt 0:01:44]} Nxf6 {[%emt 0:00:37]} 10. O-O {[%emt 0:05:51]} Bd6 {[%emt 0:01:16]} 11. Nf3 {[%emt 0:00:12]} Qc7 {[%emt 0:01:39]} 12. h3 {[%emt 0:02:04]} O-O {[%emt 0:03:34]} 13. Be3 {[%emt 0:00:54]} Bd7 {[%emt 0:05:16]} 14. Re1 {[%emt 0:03:50]} Rae8 {[%emt 0:08:40]} 15. Rc1 {[%emt 0:04:37]} Qb8 {[%emt 0:05:33]} 16. a3 {[%emt 0:04:55]} a6 {[%emt 0:04:23]} 17. Qd2 {[%emt 0:12:01]} Re7 {[%emt 0:04:13]} 18. Nc3 {[%emt 0:13:16]} Nh5 {[%emt 0:05:36]} 19. Ne5 {[%emt 0:08:35]} Bxe5 {[%emt 0:09:40]} 20. dxe5 {[%emt 0:00:10]} d4 {[%emt 0:00:34]} 21. Bxd4 {[%emt 0:09:40]} Nxd4 {[%emt 0:00:11]} 22. Qg5 {[%emt 0:00:03]} Qe8 {[%emt 0:00:29]} 23. Ne4 {[%emt 0:00:59]} Nf4 {[%emt 0:16:41]} 24. Re3 {[%emt 0:11:25]} Nd5 {[%emt 0:07:56]} 25. Rg3 {[%emt 0:04:18]} Nf5 {[%emt 0:03:36]} 26. Nf6+ {[%emt 0:11:44]} Nxf6 {[%emt 0:00:10]} 27. Bxf5 {[%emt 0:01:17]} Nh5 {[%emt 0:01:17]} 0-1